[Event "*** MasterClass Titled Tuesday Blitz"]
[Site "Chess.com"]
[Date "2017.12.12"]
[Round "1"]
[White "gemarin"]
[Black "Winehouse83"]
[Result "0-1"]
[WhiteElo "1824"]
[BlackElo "2426"]
[TimeControl "180+2"]
[EndTime "13:10:04 PST"]
[Termination "Winehouse83 won by resignation"]

1. d4 {[%clk 0:03:01.9]} 1... Nf6 {[%clk 0:03:00.3]} 2. c4 {[%clk 0:03:02.3]}
2... g6 {[%clk 0:03:01.4]} 3. Nc3 {[%clk 0:03:02.9]} 3... Bg7 {[%clk 0:03:02.8]}
4. Nf3 {[%clk 0:03:04.4]} 4... O-O {[%clk 0:03:02.8]} 5. g3 {[%clk 0:03:06]}
5... d6 {[%clk 0:03:01.6]} 6. Bg2 {[%clk 0:03:07.4]} 6... Nbd7 {[%clk
0:03:03.2]} 7. O-O {[%clk 0:03:08.6]} 7... e5 {[%clk 0:03:03.8]} 8. Qc2 {[%clk
0:03:10.1]} 8... Re8 {[%clk 0:03:01.1]} 9. Rd1 {[%clk 0:03:11.5]} 9... Qe7
{[%clk 0:02:33]} 10. b3 {[%clk 0:03:06.6]} 10... a5 {[%clk 0:02:25.5]} 11. e3
{[%clk 0:03:05]} 11... c6 {[%clk 0:02:19.6]} 12. Ba3 {[%clk 0:03:01.5]} 12...
exd4 {[%clk 0:02:12.4]} 13. Nxd4 {[%clk 0:03:01.5]} 13... Bf8 {[%clk 0:02:09.2]}
14. h3 {[%clk 0:02:56.2]} 14... Nc5 {[%clk 0:02:07.9]} 15. Rd2 {[%clk
0:02:50.1]} 15... Nce4 {[%clk 0:02:02.2]} 16. Nxe4 {[%clk 0:02:47.4]} 16... Nxe4
{[%clk 0:02:04.1]} 17. Rdd1 {[%clk 0:02:15.5]} 17... a4 {[%clk 0:01:55.8]} 18.
Kh2 {[%clk 0:02:11.1]} 18... Nc5 {[%clk 0:01:43.2]} 19. Rd2 {[%clk 0:01:55.8]}
19... axb3 {[%clk 0:01:22.7]} 20. axb3 {[%clk 0:01:55]} 20... Qc7 {[%clk
0:01:22.6]} 21. b4 {[%clk 0:01:47.7]} 21... Ne6 {[%clk 0:01:17.7]} 22. Nb3
{[%clk 0:01:47.3]} 22... Bg7 {[%clk 0:01:16.2]} 23. Bb2 {[%clk 0:01:46.4]} 23...
Rxa1 {[%clk 0:01:10.4]} 24. Bxa1 {[%clk 0:01:41]} 24... Qe7 {[%clk 0:01:05.7]}
25. Bxg7 {[%clk 0:01:38.6]} 25... Nxg7 {[%clk 0:01:07.6]} 26. Qd3 {[%clk
0:01:38.4]} 26... Rd8 {[%clk 0:01:08.2]} 27. c5 {[%clk 0:01:38.7]} 27... d5
{[%clk 0:01:08.4]} 28. Na5 {[%clk 0:01:38.8]} 28... Bf5 {[%clk 0:01:03.4]} 29.
e4 {[%clk 0:01:32.7]} 29... Be6 {[%clk 0:01:04.6]} 30. exd5 {[%clk 0:01:32.3]}
30... Bxd5 {[%clk 0:01:04.5]} 31. Nc4 {[%clk 0:01:15.9]} 31... Ne6 {[%clk
0:00:58.4]} 32. Nd6 {[%clk 0:01:15.8]} 32... Bxg2 {[%clk 0:00:49.5]} 33. Kxg2
{[%clk 0:01:16.1]} 33... Nc7 {[%clk 0:00:43.5]} 34. Qf3 {[%clk 0:01:13.5]} 34...
Nd5 {[%clk 0:00:43.3]} 35. b5 {[%clk 0:01:14.4]} 35... Rd7 {[%clk 0:00:32.8]}
36. Ne4 {[%clk 0:01:07.4]} 36... Qe5 {[%clk 0:00:29.2]} 37. b6 {[%clk
0:01:00.7]} 37... Kg7 {[%clk 0:00:29.4]} 38. h4 {[%clk 0:00:59]} 38... Re7
{[%clk 0:00:28.2]} 39. Nd6 {[%clk 0:00:57.1]} 39... h5 {[%clk 0:00:27.3]} 40.
Qb3 {[%clk 0:00:50.3]} 40... Nf6 {[%clk 0:00:25.1]} 41. Qd3 {[%clk 0:00:48.7]}
41... Qxc5 {[%clk 0:00:23.1]} 42. Nc4 {[%clk 0:00:42.2]} 42... Qd5+ {[%clk
0:00:20.4]} 43. Qxd5 {[%clk 0:00:41.2]} 43... Nxd5 {[%clk 0:00:22]} 44. Kf3
{[%clk 0:00:34.3]} 44... Rd7 {[%clk 0:00:19.1]} 45. Ra2 {[%clk 0:00:34.5]} 45...
Kf6 {[%clk 0:00:18.7]} 46. Ra7 {[%clk 0:00:33.1]} 46... Ke6 {[%clk 0:00:19.8]}
47. Na5 {[%clk 0:00:29.9]} 47... Nxb6 {[%clk 0:00:20.3]} 48. Rxb7 {[%clk
0:00:30.7]} 48... Rxb7 {[%clk 0:00:20.6]} 49. Nxb7 {[%clk 0:00:31.4]} 49... Nc4
{[%clk 0:00:20.5]} 50. Ke4 {[%clk 0:00:30.7]} 50... Nd6+ {[%clk 0:00:20.7]} 51.
Nxd6 {[%clk 0:00:29.2]} 51... Kxd6 {[%clk 0:00:22.6]} 52. Kd4 {[%clk 0:00:24.8]}
52... c5+ {[%clk 0:00:22.5]} 53. Kc4 {[%clk 0:00:26]} 53... Kc6 {[%clk
0:00:24.1]} 54. f3 {[%clk 0:00:26.5]} 54... f5 {[%clk 0:00:22.9]} 55. f4 {[%clk
0:00:23.9]} 55... Kd6 {[%clk 0:00:24]} 56. Kc3 {[%clk 0:00:19.6]} 56... Kd5
{[%clk 0:00:25]} 57. Kd3 {[%clk 0:00:21.1]} 57... c4+ {[%clk 0:00:26.3]} 58. Kc3
{[%clk 0:00:22.3]} 58... Kc5 {[%clk 0:00:27.9]} 59. Kd2 {[%clk 0:00:15.9]} 59...
Kd4 {[%clk 0:00:29.2]} 60. Ke2 {[%clk 0:00:17.3]} 60... c3 {[%clk 0:00:30.1]}
61. Kd1 {[%clk 0:00:16.1]} 61... Kd3 {[%clk 0:00:31.4]} 62. Kc1 {[%clk
0:00:16.9]} 62... c2 {[%clk 0:00:32.9]} 63. Kb2 {[%clk 0:00:18.3]} 63... Kd2
{[%clk 0:00:33.6]} 64. Kb3 {[%clk 0:00:19.5]} 64... c1=Q {[%clk 0:00:35.1]} 0-1

[Event "*** MasterClass Titled Tuesday Blitz"]
[Site "Chess.com"]
[Date "2017.12.12"]
[Round "1"]
[White "Sam_ChessMood"]
[Black "evgenysharapov"]
[Result "1-0"]
[WhiteElo "2620"]
[BlackElo "2321"]
[TimeControl "180+2"]
[EndTime "13:10:12 PST"]
[Termination "Sam_ChessMood won by checkmate"]

1. e4 {[%clk 0:03:01]} 1... c5 {[%clk 0:03:00.1]} 2. Nf3 {[%clk 0:03:01.9]} 2...
d6 {[%clk 0:03:00.7]} 3. d4 {[%clk 0:03:02.8]} 3... cxd4 {[%clk 0:03:01.4]} 4.
Nxd4 {[%clk 0:03:04.7]} 4... Nf6 {[%clk 0:03:02.4]} 5. Nc3 {[%clk 0:03:05.9]}
5... Nc6 {[%clk 0:03:03.3]} 6. Bg5 {[%clk 0:03:05.4]} 6... Qb6 {[%clk
0:03:03.5]} 7. Nb3 {[%clk 0:03:01.7]} 7... e6 {[%clk 0:03:03.4]} 8. Bxf6 {[%clk
0:02:30.2]} 8... gxf6 {[%clk 0:03:01.4]} 9. Qd2 {[%clk 0:02:30.9]} 9... a6
{[%clk 0:03:01.1]} 10. O-O-O {[%clk 0:02:30.6]} 10... Bd7 {[%clk 0:03:01.3]} 11.
Kb1 {[%clk 0:02:31.2]} 11... O-O-O {[%clk 0:03:01.3]} 12. f4 {[%clk 0:02:31.4]}
12... Kb8 {[%clk 0:03:01]} 13. Be2 {[%clk 0:02:31.8]} 13... Rg8 {[%clk
0:03:00.1]} 14. Bh5 {[%clk 0:02:29.9]} 14... Rg7 {[%clk 0:03:00.2]} 15. g4
{[%clk 0:02:27.1]} 15... Na5 {[%clk 0:02:57.7]} 16. Nxa5 {[%clk 0:02:21]} 16...
Qxa5 {[%clk 0:02:58.1]} 17. h4 {[%clk 0:02:21.5]} 17... Be7 {[%clk 0:02:58]} 18.
Rh3 {[%clk 0:02:21.6]} 18... Rc8 {[%clk 0:02:57.7]} 19. Rd3 {[%clk 0:02:21.4]}
19... Qc5 {[%clk 0:02:44.4]} 20. f5 {[%clk 0:02:09.8]} 20... Bc6 {[%clk
0:02:34.6]} 21. Qe2 {[%clk 0:02:05.1]} 21... Qe5 {[%clk 0:02:16.1]} 22. Qe3
{[%clk 0:02:06.3]} 22... Rcg8 {[%clk 0:02:01.8]} 23. a3 {[%clk 0:02:01.7]} 23...
Rc8 {[%clk 0:01:57.5]} 24. R3d2 {[%clk 0:01:59]} 24... Rcg8 {[%clk 0:01:56.7]}
25. Rd3 {[%clk 0:01:58.8]} 25... Rc8 {[%clk 0:01:56.4]} 26. Rd4 {[%clk
0:02:00.1]} 26... Qc5 {[%clk 0:01:49.2]} 27. Qd2 {[%clk 0:01:58.4]} 27... Rcg8
{[%clk 0:01:48.4]} 28. Qe2 {[%clk 0:01:50.8]} 28... Rc8 {[%clk 0:01:48.1]} 29.
Qd2 {[%clk 0:01:51.9]} 29... Rcg8 {[%clk 0:01:48.3]} 30. Qe1 {[%clk 0:01:53.2]}
30... Rc8 {[%clk 0:01:48.7]} 31. Qe2 {[%clk 0:01:54.4]} 31... Rcg8 {[%clk
0:01:48.7]} 32. Na4 {[%clk 0:01:54.9]} 32... Bxa4 {[%clk 0:01:43.8]} 33. Rxa4
{[%clk 0:01:55.3]} 33... Rc8 {[%clk 0:01:43.6]} 34. Rb4 {[%clk 0:01:54.9]} 34...
Ka7 {[%clk 0:01:41.4]} 35. Rb3 {[%clk 0:01:55.4]} 35... Rc6 {[%clk 0:01:38.1]}
36. Rdd3 {[%clk 0:01:53]} 36... Qa5 {[%clk 0:01:16.1]} 37. Ka2 {[%clk
0:01:53.4]} 37... Qc7 {[%clk 0:01:16.1]} 38. Qe3+ {[%clk 0:01:49.7]} 38... Ka8
{[%clk 0:01:15.7]} 39. Rdc3 {[%clk 0:01:50.8]} 39... Rc5 {[%clk 0:01:09.1]} 40.
Qd4 {[%clk 0:01:46.2]} 40... e5 {[%clk 0:01:01.8]} 41. Qd2 {[%clk 0:01:44.1]}
41... Rg8 {[%clk 0:00:55.6]} 42. Bxf7 {[%clk 0:01:36.8]} 42... Rb8 {[%clk
0:00:50.2]} 43. Bd5 {[%clk 0:01:36.3]} 43... Ka7 {[%clk 0:00:50.3]} 44. g5
{[%clk 0:01:34.8]} 44... b6 {[%clk 0:00:45.8]} 45. g6 {[%clk 0:01:32]} 45... Bf8
{[%clk 0:00:46]} 46. h5 {[%clk 0:01:20.9]} 46... h6 {[%clk 0:00:46.2]} 47. Rxc5
{[%clk 0:01:13.3]} 47... bxc5 {[%clk 0:00:46.5]} 48. Bc4 {[%clk 0:01:07.1]}
48... Rxb3 {[%clk 0:00:45.3]} 49. cxb3 {[%clk 0:01:08.1]} 49... Qb7 {[%clk
0:00:42.4]} 50. Qd3 {[%clk 0:01:08.7]} 50... Qc6 {[%clk 0:00:39.4]} 51. Qe3
{[%clk 0:01:03.4]} 51... a5 {[%clk 0:00:36.6]} 52. Qd3 {[%clk 0:01:04.1]} 52...
Kb6 {[%clk 0:00:34.5]} 53. a4 {[%clk 0:00:55.7]} 53... Ka7 {[%clk 0:00:30.6]}
54. Bb5 {[%clk 0:00:52.4]} 54... Qb7 {[%clk 0:00:31.1]} 55. Qc4 {[%clk
0:00:53.4]} 55... Kb6 {[%clk 0:00:26.1]} 56. Qg8 {[%clk 0:00:48.1]} 56... Bg7
{[%clk 0:00:22.2]} 57. Qd8+ {[%clk 0:00:47.7]} 57... Qc7 {[%clk 0:00:22.8]} 58.
Qe8 {[%clk 0:00:49]} 58... Qb7 {[%clk 0:00:22.8]} 59. Bc4 {[%clk 0:00:44.4]}
59... Qc7 {[%clk 0:00:18.9]} 60. Bd5 {[%clk 0:00:44.7]} 60... Qa7 {[%clk
0:00:18.5]} 61. Qd8+ {[%clk 0:00:44.2]} 61... Qc7 {[%clk 0:00:18.9]} 62. Qa8
{[%clk 0:00:45.2]} 62... Qa7 {[%clk 0:00:19.5]} 63. Qc6# {[%clk 0:00:46]} 1-0

[Event "*** MasterClass Titled Tuesday Blitz"]
[Site "Chess.com"]
[Date "2017.12.12"]
[Round "1"]
[White "saraswathii"]
[Black "JoachimBN"]
[Result "0-1"]
[WhiteElo "2278"]
[BlackElo "2564"]
[TimeControl "180+2"]
[EndTime "13:10:20 PST"]
[Termination "JoachimBN won by resignation"]

1. d4 {[%clk 0:02:57.1]} 1... g6 {[%clk 0:03:00.5]} 2. Bf4 {[%clk 0:02:56.6]}
2... Bg7 {[%clk 0:03:01.5]} 3. e3 {[%clk 0:02:57.5]} 3... Nf6 {[%clk 0:03:02.3]}
4. Nf3 {[%clk 0:02:51.5]} 4... c5 {[%clk 0:02:38.7]} 5. c3 {[%clk 0:02:41.8]}
5... O-O {[%clk 0:02:35.5]} 6. h3 {[%clk 0:02:41.7]} 6... b6 {[%clk 0:02:36.6]}
7. Be2 {[%clk 0:02:40.7]} 7... Bb7 {[%clk 0:02:38.1]} 8. Nbd2 {[%clk 0:02:41.2]}
8... d6 {[%clk 0:02:39.6]} 9. O-O {[%clk 0:02:41.1]} 9... Nbd7 {[%clk
0:02:40.6]} 10. a4 {[%clk 0:02:37.2]} 10... a6 {[%clk 0:02:42]} 11. Re1 {[%clk
0:02:34]} 11... Ra7 {[%clk 0:02:43.1]} 12. Bf1 {[%clk 0:01:44.3]} 12... Qa8
{[%clk 0:02:42.6]} 13. Qc2 {[%clk 0:01:39.6]} 13... Rc8 {[%clk 0:02:36.1]} 14.
Qd3 {[%clk 0:01:36.4]} 14... Ne4 {[%clk 0:02:34.4]} 15. Ng5 {[%clk 0:01:24.1]}
15... Nxd2 {[%clk 0:02:31.3]} 16. Qxd2 {[%clk 0:01:24.2]} 16... h6 {[%clk
0:02:32.9]} 17. Nf3 {[%clk 0:01:21.4]} 17... Nf6 {[%clk 0:02:33.8]} 18. Nh2
{[%clk 0:01:16.3]} 18... Nh5 {[%clk 0:02:30]} 19. a5 {[%clk 0:01:06.9]} 19... b5
{[%clk 0:02:24.8]} 20. dxc5 {[%clk 0:00:59]} 20... Rxc5 {[%clk 0:02:10.3]} 21.
e4 {[%clk 0:00:47.5]} 21... Nxf4 {[%clk 0:02:09.4]} 22. Qxf4 {[%clk 0:00:49.4]}
22... h5 {[%clk 0:01:40.6]} 23. Bd3 {[%clk 0:00:48.5]} 23... Qc8 {[%clk
0:01:33.8]} 24. Nf3 {[%clk 0:00:44.4]} 24... Qe6 {[%clk 0:01:20.5]} 25. Rad1
{[%clk 0:00:39]} 25... Ra8 {[%clk 0:01:20.5]} 26. Qe3 {[%clk 0:00:33.4]} 26...
Rac8 {[%clk 0:01:18.4]} 27. Nd4 {[%clk 0:00:26.1]} 27... Qf6 {[%clk 0:01:14.8]}
28. Nf3 {[%clk 0:00:22.2]} 28... g5 {[%clk 0:01:10.4]} 29. Nd4 {[%clk
0:00:21.2]} 29... e6 {[%clk 0:01:09.3]} 30. Nb3 {[%clk 0:00:22.1]} 30... R5c6
{[%clk 0:01:03]} 31. Qa7 {[%clk 0:00:22.7]} 31... Qe7 {[%clk 0:00:57.4]} 32. Qe3
{[%clk 0:00:20.3]} 32... R6c7 {[%clk 0:00:53.3]} 33. Qe2 {[%clk 0:00:20.2]}
33... h4 {[%clk 0:00:53.2]} 34. Qe3 {[%clk 0:00:19.4]} 34... Be5 {[%clk
0:00:52.9]} 35. Bc2 {[%clk 0:00:18.5]} 35... Qf6 {[%clk 0:00:53.2]} 36. Nd4
{[%clk 0:00:18.7]} 36... b4 {[%clk 0:00:52.6]} 37. Rd3 {[%clk 0:00:15.9]} 37...
bxc3 {[%clk 0:00:51.7]} 38. bxc3 {[%clk 0:00:17.1]} 38... Kg7 {[%clk 0:00:39]}
39. Red1 {[%clk 0:00:13.7]} 39... Rc5 {[%clk 0:00:28.6]} 40. Bb3 {[%clk
0:00:13.3]} 40... Rxa5 {[%clk 0:00:26.5]} 41. Nf3 {[%clk 0:00:14.4]} 41... Bf4
{[%clk 0:00:27.8]} 42. Qa7 {[%clk 0:00:14.1]} 42... Bxe4 {[%clk 0:00:21.9]} 43.
Rd4 {[%clk 0:00:08.8]} 43... Bxf3 {[%clk 0:00:22.7]} 44. gxf3 {[%clk 0:00:10.6]}
44... Rxc3 {[%clk 0:00:23]} 45. Bc4 {[%clk 0:00:09.3]} 45... Rc5 {[%clk
0:00:21.3]} 46. Be2 {[%clk 0:00:09.8]} 46... a5 {[%clk 0:00:21]} 47. Ra4 {[%clk
0:00:07.9]} 47... Qe5 {[%clk 0:00:20.7]} 48. Bf1 {[%clk 0:00:07.6]} 48... Rxf3
{[%clk 0:00:19.6]} 49. Bg2 {[%clk 0:00:07.9]} 49... Rfc3 {[%clk 0:00:19.6]} 50.
Re4 {[%clk 0:00:08.2]} 50... Qf6 {[%clk 0:00:18.4]} 51. Ra4 {[%clk 0:00:08.2]}
51... Rc1 {[%clk 0:00:19.5]} 52. Bf3 {[%clk 0:00:06.7]} 52... Rxd1+ {[%clk
0:00:20.2]} 53. Bxd1 {[%clk 0:00:08.6]} 53... Qe5 {[%clk 0:00:19.3]} 54. Qb6
{[%clk 0:00:07.1]} 54... Rc1 {[%clk 0:00:18.9]} 55. Qd4 {[%clk 0:00:05.2]} 55...
Kf8 {[%clk 0:00:10.9]} 56. Qxe5 {[%clk 0:00:05.1]} 56... Bxe5 {[%clk 0:00:12.8]}
0-1

[Event "*** MasterClass Titled Tuesday Blitz"]
[Site "Chess.com"]
[Date "2017.12.12"]
[Round "1"]
[White "AndrewDGreen"]
[Black "mazetofonias"]
[Result "0-1"]
[WhiteElo "2104"]
[BlackElo "2465"]
[TimeControl "180+2"]
[EndTime "13:10:47 PST"]
[Termination "mazetofonias won by resignation"]

1. d4 {[%clk 0:03:01.9]} 1... Nf6 {[%clk 0:03:00.5]} 2. Nf3 {[%clk 0:03:02.9]}
2... e6 {[%clk 0:03:01.8]} 3. Bf4 {[%clk 0:03:03.5]} 3... c5 {[%clk 0:03:03]} 4.
e3 {[%clk 0:03:04.7]} 4... Nc6 {[%clk 0:03:04]} 5. Nbd2 {[%clk 0:02:59.2]} 5...
d5 {[%clk 0:02:57.7]} 6. c3 {[%clk 0:02:53]} 6... Nh5 {[%clk 0:02:58.6]} 7. Bg5
{[%clk 0:02:52.8]} 7... Qb6 {[%clk 0:03:00.1]} 8. Rb1 {[%clk 0:02:51.9]} 8... h6
{[%clk 0:03:00.1]} 9. Bh4 {[%clk 0:02:53.1]} 9... g5 {[%clk 0:03:00.7]} 10. Bg3
{[%clk 0:02:53.9]} 10... Nxg3 {[%clk 0:03:01.7]} 11. hxg3 {[%clk 0:02:55.3]}
11... Bg7 {[%clk 0:03:03]} 12. Bd3 {[%clk 0:02:55.8]} 12... Bd7 {[%clk
0:03:03.4]} 13. O-O {[%clk 0:02:38.5]} 13... cxd4 {[%clk 0:03:03]} 14. exd4
{[%clk 0:02:38.7]} 14... O-O {[%clk 0:03:04.2]} 15. Re1 {[%clk 0:02:31.5]} 15...
Rae8 {[%clk 0:03:03.6]} 16. Ne5 {[%clk 0:02:26.1]} 16... Bc8 {[%clk 0:02:59]}
17. Qh5 {[%clk 0:02:17.4]} 17... Nxe5 {[%clk 0:02:35.8]} 18. Rxe5 {[%clk
0:01:41.2]} 18... Qc7 {[%clk 0:02:15.2]} 19. Rxg5 {[%clk 0:01:38.1]} 19... f5
{[%clk 0:02:09.4]} 20. Qxh6 {[%clk 0:01:30.7]} 20... Rf7 {[%clk 0:02:05.1]} 21.
Nf3 {[%clk 0:01:24]} 21... Ref8 {[%clk 0:01:59.6]} 22. Ne5 {[%clk 0:01:17]}
22... Rf6 {[%clk 0:01:59.2]} 23. Rg6 {[%clk 0:00:51.1]} 23... Rxg6 {[%clk
0:01:53.5]} 24. Qxg6 {[%clk 0:00:53]} 24... Rf6 {[%clk 0:01:49]} 25. Qh5 {[%clk
0:00:40.8]} 25... Bd7 {[%clk 0:01:43]} 26. g4 {[%clk 0:00:30.2]} 26... Rf8
{[%clk 0:01:33.3]} 27. Re1 {[%clk 0:00:21.2]} 27... Be8 {[%clk 0:01:32.2]} 28.
Qh4 {[%clk 0:00:20.7]} 28... Bf6 {[%clk 0:00:49.4]} 29. g5 {[%clk 0:00:21.4]}
29... Bg7 {[%clk 0:00:45.2]} 30. g6 {[%clk 0:00:21.6]} 30... Bf6 {[%clk
0:00:45.5]} 31. Qh6 {[%clk 0:00:20.9]} 31... Qg7 {[%clk 0:00:46.7]} 32. Qxg7+
{[%clk 0:00:14.9]} 32... Kxg7 {[%clk 0:00:48.6]} 33. g4 {[%clk 0:00:14.3]} 33...
Bh4 {[%clk 0:00:24.7]} 34. Kg2 {[%clk 0:00:10.7]} 34... a6 {[%clk 0:00:17.8]}
35. Re2 {[%clk 0:00:11.6]} 35... f4 {[%clk 0:00:17.3]} 36. f3 {[%clk 0:00:11.7]}
36... Bg3 {[%clk 0:00:16.3]} 37. Nf7 {[%clk 0:00:10.1]} 37... Bxf7 {[%clk
0:00:16.8]} 38. gxf7 {[%clk 0:00:11.8]} 38... Kxf7 {[%clk 0:00:18.7]} 39. Kf1
{[%clk 0:00:07.9]} 39... Rh8 {[%clk 0:00:20]} 40. Rg2 {[%clk 0:00:09.1]} 40...
Kf6 {[%clk 0:00:21.1]} 41. Ke2 {[%clk 0:00:07.9]} 41... Rh1 {[%clk 0:00:21.2]}
42. Bc2 {[%clk 0:00:08.4]} 42... e5 {[%clk 0:00:20.4]} 43. dxe5+ {[%clk
0:00:09.2]} 43... Kxe5 {[%clk 0:00:22.3]} 44. Kd3 {[%clk 0:00:10.4]} 44... Kd6
{[%clk 0:00:21.1]} 45. Re2 {[%clk 0:00:10.6]} 45... Rf1 {[%clk 0:00:21]} 46. g5
{[%clk 0:00:11.7]} 46... Rxf3+ {[%clk 0:00:21.7]} 47. Kd2 {[%clk 0:00:12.9]}
47... Bh4 {[%clk 0:00:14]} 48. g6 {[%clk 0:00:09.8]} 48... Rg3 {[%clk
0:00:15.1]} 49. Bf5 {[%clk 0:00:10.2]} 49... f3 {[%clk 0:00:16.2]} 50. Re6+
{[%clk 0:00:10.9]} 50... Kc7 {[%clk 0:00:15.1]} 51. Ke3 {[%clk 0:00:10.8]} 51...
Bg5+ {[%clk 0:00:14.6]} 52. Kf2 {[%clk 0:00:10.8]} 52... Bh4 {[%clk 0:00:16.2]}
53. Kf1 {[%clk 0:00:11.7]} 53... f2 {[%clk 0:00:16.4]} 54. Kxf2 {[%clk
0:00:09.6]} 54... Rxg6+ {[%clk 0:00:08.1]} 55. Ke2 {[%clk 0:00:10.1]} 55... Rg2+
{[%clk 0:00:08.6]} 56. Kd3 {[%clk 0:00:10.7]} 56... Rxb2 {[%clk 0:00:09.9]} 57.
Rh6 {[%clk 0:00:10.8]} 57... Bg3 {[%clk 0:00:10.1]} 58. a4 {[%clk 0:00:10.8]}
58... Be5 {[%clk 0:00:10.7]} 59. Re6 {[%clk 0:00:11.3]} 59... Bf4 {[%clk
0:00:10.3]} 60. Re7+ {[%clk 0:00:10.5]} 60... Kb6 {[%clk 0:00:11]} 61. Bc8
{[%clk 0:00:11.3]} 61... Ka7 {[%clk 0:00:11.8]} 62. Kd4 {[%clk 0:00:10.8]} 62...
Bg5 {[%clk 0:00:12.3]} 63. Rg7 {[%clk 0:00:10]} 63... Bf6+ {[%clk 0:00:13]} 64.
Kxd5 {[%clk 0:00:10]} 64... Bxg7 {[%clk 0:00:14.9]} 0-1

[Event "*** MasterClass Titled Tuesday Blitz"]
[Site "Chess.com"]
[Date "2017.12.12"]
[Round "1"]
[White "Apocalyps999"]
[Black "Keranke"]
[Result "1-0"]
[WhiteElo "2417"]
[BlackElo "2704"]
[TimeControl "180+2"]
[EndTime "13:11:08 PST"]
[Termination "Apocalyps999 won by resignation"]

1. e4 {[%clk 0:03:01.9]} 1... g6 {[%clk 0:03:00.3]} 2. d4 {[%clk 0:02:59.5]}
2... Bg7 {[%clk 0:03:00]} 3. Nc3 {[%clk 0:02:57.3]} 3... d6 {[%clk 0:03:00.6]}
4. f4 {[%clk 0:02:58]} 4... a6 {[%clk 0:03:01.7]} 5. Nf3 {[%clk 0:02:56.3]} 5...
b5 {[%clk 0:03:02.7]} 6. a3 {[%clk 0:02:56.2]} 6... Nd7 {[%clk 0:03:02.5]} 7. e5
{[%clk 0:02:54.4]} 7... c5 {[%clk 0:02:59.4]} 8. Be3 {[%clk 0:02:35.3]} 8... Nh6
{[%clk 0:02:53.7]} 9. dxc5 {[%clk 0:02:27.7]} 9... dxc5 {[%clk 0:02:43.5]} 10.
Qd5 {[%clk 0:02:12.5]} 10... Rb8 {[%clk 0:02:40.8]} 11. Bxc5 {[%clk 0:00:36.7]}
11... Bb7 {[%clk 0:02:36.1]} 12. Qd4 {[%clk 0:00:36.3]} 12... Nf5 {[%clk
0:02:17.8]} 13. Qf2 {[%clk 0:00:34.7]} 13... Nxc5 {[%clk 0:02:14.6]} 14. Qxc5
{[%clk 0:00:33.7]} 14... Bxf3 {[%clk 0:02:09]} 15. gxf3 {[%clk 0:00:33.6]} 15...
Rc8 {[%clk 0:02:09.7]} 16. Qf2 {[%clk 0:00:22.2]} 16... O-O {[%clk 0:02:04.6]}
17. Bd3 {[%clk 0:00:22.9]} 17... Nd4 {[%clk 0:02:03]} 18. O-O-O {[%clk
0:00:20.1]} 18... Qb6 {[%clk 0:01:51.7]} 19. Kb1 {[%clk 0:00:18.5]} 19... Rfd8
{[%clk 0:01:50.7]} 20. Be4 {[%clk 0:00:18.1]} 20... Qc5 {[%clk 0:01:44.4]} 21.
Ne2 {[%clk 0:00:17.8]} 21... Ne6 {[%clk 0:01:37]} 22. Qxc5 {[%clk 0:00:15.8]}
22... Nxc5 {[%clk 0:01:38.2]} 23. c3 {[%clk 0:00:11.6]} 23... e6 {[%clk
0:01:25.2]} 24. Rd4 {[%clk 0:00:12.2]} 24... Nb3 {[%clk 0:01:25.3]} 25. Rxd8+
{[%clk 0:00:12]} 25... Rxd8 {[%clk 0:01:27.2]} 26. Kc2 {[%clk 0:00:13]} 26...
Rd2+ {[%clk 0:01:27.1]} 27. Kxb3 {[%clk 0:00:13.5]} 27... Rxe2 {[%clk 0:01:29]}
28. h4 {[%clk 0:00:14.3]} 28... Bh6 {[%clk 0:01:26.9]} 29. h5 {[%clk 0:00:11.6]}
29... Bxf4 {[%clk 0:01:28.2]} 30. hxg6 {[%clk 0:00:12.6]} 30... hxg6 {[%clk
0:01:28]} 31. Rd1 {[%clk 0:00:13]} 31... Bxe5 {[%clk 0:01:23]} 32. Rd8+ {[%clk
0:00:13.5]} 32... Kg7 {[%clk 0:01:24.2]} 33. Ra8 {[%clk 0:00:15.2]} 33... f5
{[%clk 0:01:22.4]} 34. Bc6 {[%clk 0:00:15.8]} 34... Bf4 {[%clk 0:01:21.7]} 35.
Rxa6 {[%clk 0:00:16.8]} 35... Bc1 {[%clk 0:01:22.8]} 36. Bxb5 {[%clk 0:00:16.8]}
36... Rxb2+ {[%clk 0:01:23.8]} 37. Kc4 {[%clk 0:00:18.4]} 37... Kf7 {[%clk
0:01:20.3]} 38. Bd7 {[%clk 0:00:14.4]} 38... e5 {[%clk 0:01:20.8]} 39. Bc6
{[%clk 0:00:12.9]} 39... Rf2 {[%clk 0:01:08.6]} 40. Bd5+ {[%clk 0:00:13.1]}
40... Kg7 {[%clk 0:01:09.4]} 41. a4 {[%clk 0:00:15]} 41... g5 {[%clk 0:01:08.8]}
42. a5 {[%clk 0:00:15.9]} 42... g4 {[%clk 0:01:09.9]} 43. fxg4 {[%clk
0:00:15.9]} 43... fxg4 {[%clk 0:01:11.8]} 44. Ra8 {[%clk 0:00:16.8]} 44... Be3
{[%clk 0:01:11.6]} 45. Rg8+ {[%clk 0:00:17]} 45... Kf6 {[%clk 0:01:10]} 46. Rxg4
{[%clk 0:00:18.9]} 46... Rf1 {[%clk 0:01:05.1]} 47. Rg3 {[%clk 0:00:16.1]} 47...
Bf4 {[%clk 0:01:05.2]} 48. Rg8 {[%clk 0:00:16.1]} 48... Ra1 {[%clk 0:01:07.1]}
49. Ra8 {[%clk 0:00:16.7]} 49... Be3 {[%clk 0:01:03.4]} 50. a6 {[%clk
0:00:17.3]} 50... Kg5 {[%clk 0:01:04]} 51. Bb7 {[%clk 0:00:17.6]} 51... Kf4
{[%clk 0:01:04.3]} 52. Rf8+ {[%clk 0:00:17.6]} 52... Kg4 {[%clk 0:01:05.4]} 53.
Kd5 {[%clk 0:00:18.6]} 53... Ra5+ {[%clk 0:01:05]} 54. Ke4 {[%clk 0:00:19.6]}
54... Ba7 {[%clk 0:01:05]} 55. c4 {[%clk 0:00:19.9]} 55... Bd4 {[%clk
0:01:03.7]} 56. Rg8+ {[%clk 0:00:19.9]} 56... Kh4 {[%clk 0:01:04.6]} 57. Bc8
{[%clk 0:00:17.6]} 57... Kh5 {[%clk 0:01:03.6]} 58. Kf5 {[%clk 0:00:14.5]} 58...
Kh6 {[%clk 0:01:03.5]} 59. Rg6+ {[%clk 0:00:12.9]} 59... Kh7 {[%clk 0:01:04.8]}
60. Rc6 {[%clk 0:00:12.8]} 60... Kg7 {[%clk 0:01:03.7]} 61. Rc7+ {[%clk
0:00:10.4]} 61... Kf8 {[%clk 0:01:03.2]} 62. Ke6 {[%clk 0:00:09.4]} 62... e4
{[%clk 0:01:01.8]} 63. Bb7 {[%clk 0:00:08.4]} 63... e3 {[%clk 0:01:00.3]} 64.
Rf7+ {[%clk 0:00:08.5]} 64... Ke8 {[%clk 0:00:49.3]} 65. Re7+ {[%clk 0:00:07.7]}
65... Kf8 {[%clk 0:00:49.9]} 66. Kd7 {[%clk 0:00:04.8]} 66... Ra2 {[%clk
0:00:42.3]} 67. Bd5 {[%clk 0:00:05]} 67... e2 {[%clk 0:00:26.4]} 68. Bf3 {[%clk
0:00:05]} 68... Rxa6 {[%clk 0:00:23.1]} 69. Rxe2 {[%clk 0:00:05.6]} 69... Rf6
{[%clk 0:00:22.8]} 70. Bd5 {[%clk 0:00:05.6]} 70... Rf2 {[%clk 0:00:22.3]} 71.
Re4 {[%clk 0:00:06.1]} 71... Bc5 {[%clk 0:00:23.2]} 72. Rg4 {[%clk 0:00:07.3]}
1-0